bitfinex/quotes_SOLUSD_20240708
["timestamp","ask_amount","ask_price","bid_price","bid_amount"]
[1720474905315,0.17,140.75,140.69,7.1077]
[1720474905316,7.1056,140.74,140.69,7.1077]
[1720474905830,28.97133216,140.74,140.69,7.1077]
[1720474906223,28.97133216,140.74,140.62,19.43]
[1720474906224,7.1059,140.73,140.68,7.1082]
[1720474906721,0.17,140.75,140.68,7.1082]
[1720474906938,7.1059,140.73,140.68,7.1082]
[1720474907221,7.2765,140.72,140.61,31.52378368]
[1720474907427,7.2765,140.72,140.62,20.0]
[1720474907842,7.1069,140.71,140.67,7.1086]
[1720474908044,0.17,140.72,140.67,7.1086]
[1720474908225,0.17,140.71,140.67,7.1086]
[1720474908538,7.1068,140.71,140.67,7.1086]
[1720474908732,0.34,140.73,140.61,25.95354086]
[1720474908932,10.65958586,140.73,140.61,25.95354086]
[1720474909136,0.17,140.7,140.66,7.1092]
[1720474909731,7.2774,140.7,140.66,7.1092]
[1720474909913,7.2774,140.7,140.65,7.1097]
[1720474909914,7.2776,140.7,140.65,7.1097]
[1720474910430,0.17,140.7,140.66,7.1092]
[1720474911744,7.2774,140.7,140.66,7.1092]
[1720474911923,0.34,140.7,140.61,6.52354086]
[1720474912122,0.34,140.7,140.64,7.1102]
[1720474912336,7.1081,140.69,140.64,7.1102]
[1720474913538,7.1081,140.69,140.65,7.1097]
[1720474913742,29.4152791,140.7,140.61,0.04214086]
[1720474913958,7.1084,140.68,140.61,0.04214086]
[1720474914328,7.1088,140.67,140.63,7.1107]
[1720474914528,7.1088,140.67,140.61,0.04214086]
[1720474915136,7.1088,140.67,140.62,7.1109]
[1720474915341,7.1088,140.67,140.63,7.1107]
[1720474915742,7.1088,140.67,140.62,7.1112]
[1720474916935,7.1093,140.66,140.62,7.1112]
[1720474917256,22.166,140.65,140.61,7.15384086]
[1720474917836,29.2758,140.65,140.61,0.04214086]
[1720474918661,0.17,140.64,140.61,0.04214086]
[1720474919165,7.2803,140.64,140.61,0.04214086]
[1720474919333,7.2803,140.64,140.53,19.43]
[1720474919540,7.2809,140.63,140.53,5.74211358]
[1720474919866,7.1122,140.61,140.51,15.0]
[1720474920043,0.17,140.61,140.51,15.0]
[1720474920360,7.1124,140.6,140.5,15.7254]
[1720474920537,12.60439439,140.61,140.5,15.7254]
[1720474920862,12.60439439,140.61,140.5,21.52898736]
[1720474921060,7.113,140.59,140.47,19.43]
[1720474921656,12.60439439,140.61,140.47,19.43]
[1720474921858,26.62933216,140.6,140.47,19.43]
[1720474922442,26.62913216,140.6,140.49,0.17]
[1720474922658,7.1129,140.59,140.48,20.0]
[1720474922862,26.62913216,140.6,140.48,20.0]
[1720474923061,7.1129,140.59,140.48,20.0]
[1720474923963,7.113,140.59,140.48,20.0]
[1720474924368,0.17,140.59,140.48,20.0]
[1720474924839,7.2829,140.59,140.48,20.0]
[1720474925458,7.2829,140.59,140.49,0.17]
[1720474925769,7.1134,140.58,140.49,0.17]
[1720474925981,12.43439439,140.59,140.49,0.17]
[1720474925982,19.54749439,140.59,140.49,0.17]
[1720474927057,7.1134,140.58,140.49,0.17]
[1720474929183,19.54749439,140.59,140.49,0.17]
[1720474929716,7.1134,140.58,140.49,0.17]
[1720474930459,12.43439439,140.59,140.48,0.34]
[1720474930460,7.1139,140.57,140.48,0.34]
[1720474930651,7.1139,140.57,140.48,20.34]
[1720474930852,7.1136,140.58,140.48,20.34]
[1720474931875,26.63033216,140.58,140.48,20.34]
[1720474932583,9.74,140.57,140.51,9.74]
[1720474932774,9.74,140.57,140.48,20.34]
[1720474933079,9.74,140.57,140.51,9.74]
[1720474933882,15.144,140.55,140.48,20.34]
[1720474934073,24.884,140.55,140.5,9.74]
[1720474934274,24.884,140.55,140.48,9.74]
[1720474934275,9.74,140.53,140.48,9.74]
[1720474934867,9.74,140.54,140.48,9.74]
[1720474935171,22.259,140.55,140.49,9.74]
[1720474935382,9.74,140.53,140.48,9.74]
[1720474935891,15.144,140.55,140.48,9.74]
[1720474936197,9.74,140.53,140.48,9.74]
[1720474937083,9.74,140.53,140.46,0.8729227]
[1720474937395,9.74,140.53,140.48,9.74]
[1720474938199,9.74,140.53,140.49,9.74]
[1720474938364,9.74,140.53,140.48,9.74]
[1720474938684,9.74,140.54,140.48,9.74]
[1720474938886,9.74,140.54,140.46,0.8729227]
[1720474939094,9.74,140.54,140.48,9.74]
[1720474939759,9.74,140.54,140.46,0.8729227]
[1720474939760,0.17,140.53,140.46,0.8729227]
[1720474939959,9.74,140.5,140.46,0.8729227]
[1720474940261,9.74,140.49,140.46,0.8729227]
[1720474941294,12.26439439,140.52,140.46,0.8729227]
[1720474941295,30.05549439,140.52,140.46,0.8729227]
[1720474941497,16.8582,140.49,140.46,0.8729227]
[1720474941999,0.17,140.51,140.46,0.8729227]
[1720474942000,9.74,140.47,140.46,0.8729227]
[1720474942703,19.51673216,140.49,140.46,0.8729227]
[1720474942874,26.63473216,140.49,140.46,0.8729227]
[1720474943378,7.1185,140.48,140.46,0.8729227]
[1720474943681,25.92473216,140.49,140.4,21.7431]
[1720474943682,33.04293216,140.49,140.4,21.7431]
[1720474944186,7.119,140.47,140.39,0.17]
[1720474944386,7.1186,140.48,140.38,20.34]
[1720474944697,7.1192,140.47,140.38,20.0]
[1720474944876,7.2886,140.48,140.38,20.0]
[1720474945072,12.43439439,140.48,140.38,20.0]
[1720474945300,12.43439439,140.48,140.37,20.0]
[1720474945689,7.1195,140.46,140.37,20.0]
[1720474946004,7.1194,140.47,140.37,20.0]
[1720474946207,19.51673216,140.47,140.36,21.9102]
[1720474946368,0.17,140.46,140.36,21.9102]
[1720474946573,7.1196,140.46,140.36,21.9102]
[1720474946774,19.51673216,140.47,140.36,21.9102]
[1720474947084,7.1197,140.46,140.36,21.9102]
[1720474947296,26.63593216,140.47,140.36,21.9102]
[1720474947492,7.1197,140.46,140.36,21.9102]
[1720474947692,21.62437554,140.46,140.36,21.9102]
[1720474948194,14.50467554,140.46,140.36,21.9102]
[1720474948707,14.50467554,140.46,140.38,0.17]
[1720474948887,14.50467554,140.46,140.38,0.34]
[1720474949311,14.50467554,140.46,140.37,20.0]
[1720474949517,21.62437554,140.46,140.37,20.0]
[1720474949736,14.50467554,140.46,140.37,20.0]
[1720474950027,7.12,140.45,140.37,20.0]
[1720474950384,14.50467554,140.46,140.37,20.0]
[1720474950816,14.50467554,140.46,140.38,0.17]
[1720474951910,21.62407554,140.46,140.38,0.17]
[1720474953012,14.50467554,140.46,140.38,0.17]
[1720474953201,14.50467554,140.46,140.38,0.34]
[1720474953509,14.50467554,140.46,140.38,0.17]
[1720474953714,21.62447554,140.46,140.38,0.17]
[1720474953919,7.1199,140.45,140.37,20.0]
[1720474954490,21.62427554,140.46,140.37,20.0]
[1720474955593,14.50467554,140.46,140.38,0.17]
[1720474955904,14.50467554,140.46,140.38,0.34]
[1720474956823,14.50467554,140.46,140.36,21.9102]
[1720474957123,7.1203,140.45,140.36,21.9102]
[1720474957629,21.62437554,140.46,140.36,21.9102]
[1720474958233,7.1199,140.45,140.37,0.34]
[1720474959103,21.62437554,140.46,140.37,0.34]
[1720474960506,0.17,140.45,140.36,21.9102]
[1720474960817,19.68673216,140.45,140.36,21.9102]
[1720474961217,7.1205,140.44,140.36,21.9102]
[1720474963023,7.1215,140.42,140.36,21.9102]
[1720474963516,7.1212,140.43,140.36,21.9102]
[1720474963724,14.50467554,140.44,140.36,21.9102]
[1720474963912,7.1215,140.42,140.36,21.9102]
[1720474964224,7.1211,140.43,140.36,21.9102]
[1720474964732,9.76,140.4,140.36,15.2613]
[1720474965102,9.76,140.39,140.32,16.0476227]
[1720474965303,9.76,140.39,140.34,9.76]
[1720474965504,13.309,140.41,140.34,9.76]
[1720474965722,9.76,140.39,140.32,16.0476227]
[1720474966108,7.1222,140.41,140.35,9.76]
[1720474966414,9.76,140.4,140.35,9.76]
[1720474966723,16.8827,140.4,140.35,9.76]
[1720474967310,9.76,140.4,140.35,9.76]
[1720474967915,7.1217,140.42,140.36,15.7676]
[1720474968119,16.882,140.41,140.36,6.0076]
[1720474969215,9.76,140.41,140.36,6.0076]
[1720474969837,9.76,140.4,140.36,6.0076]
[1720474970141,16.8826,140.4,140.33,6.584]
[1720474970606,16.8826,140.4,140.35,9.76]
[1720474970807,9.76,140.4,140.35,9.76]
[1720474972315,26.63893216,140.41,140.35,9.76]
[1720474972517,36.39893216,140.41,140.33,6.584]
[1720474972731,7.1225,140.4,140.33,6.584]
[1720474972911,9.76,140.39,140.33,6.584]
[1720474973112,9.76,140.39,140.34,9.76]
[1720474974130,7.1225,140.4,140.34,9.76]
[1720474974338,9.76,140.4,140.35,9.76]
[1720474974834,9.76,140.39,140.33,6.584]
[1720474975037,9.76,140.39,140.34,9.76]
[1720474976607,16.8831,140.39,140.33,6.584]
[1720474977032,16.8831,140.39,140.34,9.76]
[1720474977224,16.8831,140.39,140.32,16.0476227]
[1720474977445,9.76,140.39,140.34,9.76]
[1720474978023,9.76,140.38,140.33,9.76]
[1720474978537,9.76,140.38,140.32,16.0476227]
[1720474978737,9.76,140.38,140.33,9.76]
[1720474978932,9.76,140.38,140.32,16.0476227]
[1720474979120,9.76,140.38,140.33,9.76]
[1720474979832,9.76,140.38,140.34,9.76]
[1720474980139,9.76,140.39,140.34,9.76]
[1720474980344,16.883,140.39,140.32,16.0476227]
[1720474980514,7.1227,140.4,140.34,9.76]
[1720474980843,7.1227,140.4,140.32,16.0476227]
[1720474981023,19.51673216,140.41,140.35,9.76]
[1720474981217,16.8827,140.4,140.35,9.76]
[1720474981629,7.1227,140.4,140.35,9.76]
[1720474981825,19.51673216,140.41,140.35,9.76]
[1720474982039,7.1214,140.43,140.36,0.17]
[1720474982337,16.8814,140.43,140.37,9.76]
[1720474982535,35.00893216,140.45,140.33,20.17]
[1720474982860,9.76,140.42,140.37,9.76]
[1720474983023,16.8816,140.42,140.37,9.76]
[1720474983224,16.8816,140.42,140.36,9.76]
[1720474983541,14.50467554,140.44,140.34,0.17]
[1720474983542,7.1212,140.43,140.37,9.76]
[1720474984138,9.76,140.42,140.37,9.76]
[1720474985340,9.76,140.42,140.34,0.17]
[1720474985530,9.76,140.42,140.37,9.76]
[1720474985851,9.76,140.42,140.34,0.17]
[1720474986072,7.1211,140.43,140.34,0.17]
[1720474986073,7.1211,140.43,140.37,9.76]
[1720474986573,16.8811,140.43,140.36,6.2314]
[1720474986754,7.1206,140.44,140.37,9.76]
[1720474986959,16.8806,140.44,140.38,9.76]
[1720474987155,16.8806,140.44,140.36,6.2314]
[1720474987462,9.76,140.43,140.38,9.76]
[1720474987761,16.881,140.43,140.37,15.154]
[1720474987966,9.76,140.43,140.38,9.76]
[1720474988768,9.76,140.43,140.37,15.154]
[1720474988950,9.76,140.43,140.38,9.76]
[1720474989153,9.76,140.44,140.37,15.154]
[1720474989357,9.76,140.44,140.39,9.76]
[1720474989958,16.8805,140.44,140.39,9.76]
[1720474990144,7.1205,140.44,140.39,9.76]
[1720474990339,9.76,140.44,140.37,15.154]
[1720474990850,16.8805,140.44,140.39,9.76]
[1720474991243,9.76,140.44,140.37,15.154]
[1720474991435,7.1202,140.45,140.39,9.76]
[1720474991642,9.76,140.45,140.4,9.76]
[1720474992343,52.93268307,140.48,140.41,9.76]
[1720474992560,9.76,140.46,140.41,9.76]
[1720474992734,25.88184928,140.48,140.41,9.76]
[1720474992934,9.76,140.46,140.38,0.17]
[1720474993157,9.76,140.46,140.41,9.76]
[1720474993863,9.76,140.46,140.38,20.34]
[1720474994159,9.76,140.46,140.41,9.76]
[1720474994351,9.76,140.46,140.38,20.34]
[1720474994561,7.1193,140.47,140.41,9.76]
[1720474994753,33.00044928,140.48,140.42,9.76]
[1720474995150,9.76,140.47,140.42,9.76]
[1720474995347,9.76,140.46,140.41,9.76]
[1720474995858,9.76,140.46,140.38,20.34]
[1720474996083,9.76,140.46,140.41,9.76]
[1720474996373,7.1186,140.48,140.42,31.4225]
[1720474996573,28.3960677,140.52,140.42,31.4225]
[1720474996574,9.76,140.47,140.42,31.4225]
[1720474996742,7.1181,140.49,140.43,9.76]
[1720474996939,9.76,140.48,140.43,9.76]
[1720474997250,7.1185,140.48,140.43,9.76]
[1720474997449,16.8785,140.48,140.43,9.76]
[1720474999463,7.1185,140.48,140.43,9.76]
[1720474999651,9.76,140.47,140.42,31.4225]
[1720475002077,7.1181,140.49,140.42,31.4225]
[1720475002252,9.76,140.47,140.42,31.4225]
[1720475002648,16.8784,140.48,140.43,9.76]
[1720475002848,16.8784,140.48,140.42,15.1997]
[1720475003153,9.76,140.47,140.42,24.9597]
[1720475009065,0.34,140.51,140.42,24.9597]
[1720475009252,9.76,140.47,140.42,24.9597]
[1720475011357,9.76,140.48,140.43,9.76]
[1720475012684,9.76,140.47,140.4,0.17]
[1720475012899,9.76,140.47,140.42,9.76]
[1720475013563,7.1179,140.49,140.43,9.76]
[1720475013767,9.76,140.48,140.43,9.76]
[1720475013973,9.76,140.48,140.42,9.76]
[1720475015062,9.76,140.48,140.4,0.34]
[1720475015377,9.76,140.48,140.42,9.76]
[1720475017490,9.76,140.48,140.43,9.76]
[1720475018166,7.1176,140.5,140.43,9.76]
[1720475018370,9.76,140.48,140.43,9.76]
[1720475018592,7.1176,140.5,140.43,9.76]
[1720475018890,7.1176,140.5,140.4,20.34]
[1720475018891,9.76,140.48,140.4,20.34]
[1720475019091,9.76,140.48,140.42,9.76]
[1720475019487,9.76,140.48,140.43,9.76]
[1720475021667,33.2227677,140.51,140.44,9.76]
[1720475021881,9.76,140.49,140.44,9.76]
[1720475023405,7.38224847,140.53,140.45,15.7165]
[1720475023627,9.76,140.52,140.45,15.7165]
[1720475023782,9.76,140.52,140.47,9.76]
[1720475023986,16.8764,140.52,140.47,9.76]
[1720475024185,9.76,140.52,140.47,9.76]
[1720475025178,9.76,140.52,140.45,15.7165]
[1720475025387,9.76,140.52,140.47,9.76]
[1720475026815,9.76,140.53,140.48,9.76]
[1720475027185,9.76,140.53,140.45,15.7165]
[1720475027389,9.76,140.52,140.47,9.76]
[1720475027785,10.0196677,140.56,140.47,9.76]
[1720475028097,9.76,140.52,140.47,9.76]
[1720475028905,7.115,140.55,140.47,9.76]
[1720475029109,9.76,140.53,140.47,9.76]
[1720475029521,10.0196677,140.56,140.48,9.76]
[1720475029684,9.76,140.53,140.45,15.7165]
[1720475029889,9.76,140.52,140.45,15.7165]
[1720475030194,49.0596677,140.56,140.47,9.76]
[1720475030409,7.1162,140.53,140.45,15.7165]
[1720475030620,7.1162,140.53,140.46,9.76]
[1720475030789,7.1161,140.53,140.45,15.7165]
[1720475031007,9.76,140.51,140.46,9.76]
[1720475031203,9.76,140.51,140.45,15.7165]
[1720475031204,7.1154,140.54,140.48,9.76]
[1720475031402,10.0196677,140.56,140.48,9.76]
[1720475031610,9.76,140.54,140.46,0.17]
[1720475031795,10.0196677,140.56,140.48,9.76]
[1720475032003,7.1163,140.53,140.48,9.76]
[1720475032201,16.8763,140.53,140.48,9.76]
[1720475032402,9.76,140.52,140.47,9.76]
[1720475033306,7.1155,140.54,140.47,9.76]
[1720475033694,7.1155,140.54,140.45,15.7165]
[1720475033695,9.76,140.52,140.44,6.6628]
[1720475033899,9.76,140.51,140.46,9.76]
[1720475034213,16.4862,140.53,140.46,9.76]
[1720475034528,9.76,140.52,140.47,9.76]
[1720475037934,16.4862,140.53,140.47,9.76]
[1720475038143,26.2462,140.53,140.48,9.76]
[1720475038943,16.4862,140.53,140.48,9.76]
[1720475039144,26.2462,140.53,140.48,9.76]
[1720475039438,9.76,140.52,140.47,9.76]
[1720475040336,0.17,140.53,140.44,6.6628]
[1720475040534,7.1166,140.52,140.47,9.76]
[1720475040745,16.8766,140.52,140.44,6.6628]
[1720475041024,9.76,140.51,140.46,9.76]
[1720475041322,9.76,140.5,140.45,9.76]
[1720475042218,0.17,140.53,140.46,9.76]
[1720475042530,9.76,140.52,140.46,9.76]
[1720475042741,9.76,140.51,140.46,9.76]
[1720475043319,9.76,140.51,140.45,9.76]
[1720475043547,9.76,140.5,140.45,9.76]
[1720475045244,7.117,140.51,140.45,9.76]
[1720475045436,9.76,140.5,140.43,15.6304]
[1720475045638,9.76,140.5,140.45,9.76]
[1720475046526,7.117,140.51,140.45,9.76]
[1720475046724,9.76,140.5,140.45,9.76]
[1720475048150,7.117,140.51,140.45,9.76]
[1720475048315,9.76,140.5,140.45,9.76]
[1720475049452,9.76,140.49,140.43,15.6304]
[1720475049637,9.76,140.49,140.44,9.76]
[1720475050033,9.76,140.49,140.43,25.3904]
[1720475050226,21.3437,140.48,140.36,16.2376]
[1720475050427,9.76,140.46,140.41,9.76]
[1720475050634,9.76,140.46,140.36,16.2376]
[1720475050635,7.1197,140.46,140.36,16.2376]
[1720475050939,7.1197,140.46,140.39,9.76]
[1720475051148,7.1201,140.45,140.39,9.76]
[1720475051350,7.1201,140.45,140.4,9.76]
[1720475051351,16.8801,140.45,140.4,9.76]
[1720475051550,9.76,140.44,140.39,9.76]
[1720475053259,7.1205,140.44,140.36,0.17]
[1720475053445,9.76,140.42,140.36,20.0]
[1720475053753,16.8817,140.42,140.35,6.6507]
[1720475053929,9.76,140.41,140.36,9.76]
[1720475054930,9.76,140.41,140.35,6.6507]
[1720475055130,9.76,140.41,140.36,9.76]
[1720475055439,9.76,140.4,140.35,16.4107]
[1720475056443,9.76,140.41,140.36,9.76]
[1720475056822,7.1217,140.42,140.36,9.76]
[1720475057046,9.76,140.42,140.35,6.6507]
[1720475057247,16.8815,140.42,140.37,9.76]
[1720475057449,9.76,140.41,140.35,6.6507]
[1720475057759,9.76,140.41,140.36,9.76]
[1720475058244,9.76,140.41,140.33,15.9592]
[1720475058556,9.76,140.41,140.36,9.76]
[1720475062333,16.882,140.41,140.36,9.76]
[1720475062839,9.76,140.41,140.36,9.76]
[1720475063331,9.76,140.41,140.33,15.9592]
[1720475063532,16.882,140.41,140.36,9.76]
[1720475063739,9.76,140.4,140.33,0.17]
[1720475063945,9.76,140.4,140.35,9.76]
[1720475064343,9.76,140.4,140.33,0.17]
[1720475064637,9.76,140.39,140.32,0.8729227]
[1720475064872,9.76,140.38,140.32,0.8729227]
[1720475065060,9.76,140.38,140.33,9.76]
[1720475065746,22.4704,140.37,140.33,9.76]
[1720475066055,9.76,140.38,140.32,0.8729227]
[1720475066056,7.1248,140.36,140.32,0.8729227]
[1720475066254,16.8848,140.36,140.32,0.8729227]
[1720475066756,23.5083,140.35,140.32,0.8729227]
[1720475066953,33.2683,140.35,140.32,0.8729227]
[1720475067377,16.8857,140.34,140.32,0.8729227]
[1720475067840,7.1257,140.34,140.32,0.8729227]
[1720475068043,16.886,140.33,140.32,0.8729227]
[1720475068260,6.1138,140.32,140.22,16.3111]
[1720475068461,9.76,140.3,140.22,16.3111]
[1720475068978,9.76,140.3,140.25,9.76]
[1720475069849,9.76,140.28,140.22,16.3111]
[1720475070264,9.76,140.27,140.23,9.76]
[1720475070871,9.76,140.27,140.22,26.0711]
[1720475071275,9.76,140.27,140.19,15.39316711]
[1720475071450,9.76,140.27,140.22,29.76]
[1720475072360,9.76,140.25,140.19,0.04226711]
[1720475072551,9.76,140.24,140.19,9.80226711]
[1720475073147,9.76,140.23,140.19,0.04226711]
[1720475073445,9.76,140.24,140.19,0.04226711]
[1720475073775,9.76,140.24,140.19,9.80226711]
[1720475073975,9.76,140.24,140.19,0.04226711]
[1720475074350,9.76,140.24,140.19,9.80226711]
[1720475074951,15.0119,140.27,140.19,9.80226711]
[1720475074952,15.0119,140.27,140.21,9.76]
[1720475075163,9.76,140.26,140.21,9.76]
[1720475076244,9.76,140.26,140.19,0.21226711]
[1720475076485,9.76,140.25,140.2,9.76]
[1720475076654,9.76,140.25,140.19,0.04226711]
[1720475076851,9.76,140.25,140.2,9.76]
[1720475077348,22.1411,140.27,140.2,9.76]
[1720475077551,9.76,140.25,140.2,9.76]
[1720475077750,9.76,140.25,140.19,0.04226711]
[1720475077971,9.76,140.25,140.2,9.76]
[1720475078947,9.76,140.25,140.19,0.04226711]
[1720475079150,9.76,140.24,140.19,0.04226711]
[1720475080183,9.76,140.24,140.19,9.80226711]
[1720475080592,9.76,140.24,140.19,0.04226711]
[1720475080758,9.76,140.24,140.19,9.80226711]
[1720475081491,9.76,140.24,140.19,0.04226711]
[1720475081788,9.76,140.24,140.19,9.80226711]
[1720475081955,9.76,140.24,140.19,0.04226711]
[1720475082152,22.1412,140.27,140.19,9.80226711]
[1720475082383,9.76,140.24,140.19,0.04226711]
[1720475082585,9.76,140.24,140.19,9.80226711]
[1720475083249,9.76,140.24,140.19,0.04226711]
[1720475083587,9.76,140.24,140.19,9.80226711]
[1720475083797,9.76,140.24,140.19,0.04226711]
[1720475083960,9.76,140.24,140.19,9.80226711]
[1720475085187,9.76,140.23,140.19,0.04226711]
[1720475085904,0.17,140.21,140.19,0.04226711]
[1720475086191,9.76,140.2,140.19,0.04226711]
[1720475086369,9.93,140.2,140.19,0.04226711]
[1720475086775,17.0626,140.2,140.19,0.04226711]
[1720475087074,0.17,140.2,140.19,0.04226711]
[1720475087282,10.1,140.2,140.19,0.04226711]
[1720475088064,17.2326,140.2,140.19,0.04226711]
[1720475088262,10.1,140.2,140.19,0.04226711]
[1720475088774,17.2326,140.2,140.19,0.04226711]
[1720475089173,37.2326,140.2,140.19,0.04226711]
[1720475090599,27.4726,140.2,140.19,0.04226711]
[1720475090790,37.2326,140.2,140.19,0.04226711]
[1720475090974,29.76,140.2,140.19,0.04226711]
[1720475091178,29.93,140.2,140.19,0.04226711]
[1720475091503,29.76,140.2,140.19,0.04226711]
[1720475092077,20.0,140.2,140.19,0.04226711]
[1720475092296,29.76,140.2,140.19,0.04226711]
[1720475093688,36.8926,140.2,140.19,0.04226711]
[1720475094967,29.76,140.2,140.19,0.04226711]
[1720475095600,37.0626,140.2,140.19,0.04226711]
[1720475095969,37.2326,140.2,140.19,0.04226711]
[1720475096180,37.0626,140.2,140.19,0.04226711]
[1720475096504,0.17,140.2,140.19,0.04226711]
[1720475096793,12.14097994,140.24,140.19,0.04226711]
[1720475096794,13.57939811,140.24,140.19,0.04226711]
[1720475096999,9.76,140.22,140.19,0.04226711]
[1720475099423,7.1308,140.24,140.19,0.04226711]
[1720475099711,29.76,140.23,140.19,0.04226711]
[1720475099929,20.0,140.23,140.19,0.04226711]
[1720475100102,9.76,140.23,140.19,0.04226711]
[1720475102702,28.59682029,140.25,140.19,0.04226711]
[1720475102900,9.76,140.23,140.19,0.04226711]
[1720475103102,9.76,140.24,140.19,0.04226711]
[1720475103417,20.0,140.23,140.19,0.04226711]
[1720475103612,20.0,140.23,140.19,9.80226711]
[1720475104109,20.0,140.23,140.19,0.04226711]
[1720475104312,9.76,140.23,140.19,0.04226711]
[1720475104519,7.1297,140.26,140.19,9.80226711]
[1720475104820,9.76,140.25,140.2,9.76]
[1720475107813,7.1296,140.26,140.21,15.0172]
[1720475107997,9.76,140.25,140.21,15.0172]
[1720475110426,9.76,140.26,140.21,24.7772]
[1720475110712,9.76,140.25,140.21,15.0172]
[1720475111219,9.76,140.24,140.21,15.0172]
[1720475112432,9.76,140.25,140.21,15.0172]
[1720475112608,9.76,140.24,140.19,0.04226711]
[1720475112803,9.76,140.23,140.19,0.04226711]
[1720475114512,0.17,140.28,140.19,0.04226711]
[1720475114832,9.76,140.24,140.19,9.80226711]
[1720475115913,27.1289,140.28,140.19,9.80226711]
[1720475116128,9.76,140.24,140.19,9.80226711]
[1720475117328,20.0,140.28,140.19,9.80226711]
[1720475117534,9.76,140.25,140.2,9.76]
[1720475118634,9.76,140.25,140.19,0.04226711]
[1720475118824,9.76,140.25,140.2,9.76]
[1720475119020,7.2993,140.27,140.19,0.04226711]
[1720475119224,9.76,140.24,140.2,9.76]
[1720475124836,27.1296,140.26,140.2,9.76]
[1720475124837,20.0,140.26,140.2,9.76]
[1720475125045,9.76,140.25,140.2,9.76]
[1720475125347,9.76,140.25,140.19,0.21226711]
[1720475125650,9.76,140.24,140.19,9.80226711]
[1720475125826,9.76,140.24,140.19,0.04226711]
[1720475126029,9.76,140.24,140.19,9.80226711]
[1720475126531,20.0,140.26,140.2,9.76]
[1720475126846,9.76,140.25,140.2,9.76]
[1720475130255,29.76,140.26,140.2,9.76]
[1720475132150,28.34916473,140.29,140.22,16.2182]
[1720475132452,9.76,140.28,140.23,9.76]
[1720475133433,9.76,140.27,140.22,25.9782]
[1720475133632,39.21,140.32,140.23,9.76]
[1720475133633,7.1278,140.3,140.23,9.76]
[1720475133848,9.76,140.28,140.23,9.76]
[1720475134055,7.1278,140.3,140.24,9.76]
[1720475134353,9.76,140.29,140.24,9.76]
[1720475136461,3.71822967,140.34,140.25,22.0927]
[1720475136770,3.71822967,140.34,140.28,9.76]
[1720475136771,9.76,140.33,140.28,9.76]
[1720475137071,7.1256,140.34,140.27,9.76]
[1720475137250,9.76,140.33,140.28,9.76]
[1720475138049,3.72893703,140.38,140.29,22.805]
[1720475138254,9.76,140.4,140.35,16.5608]
[1720475138458,16.588,140.43,140.35,26.3208]
[1720475138668,9.76,140.4,140.36,6.2442]
[1720475139342,7.1206,140.44,140.36,16.0042]